{"text_format":"1","workbook":"xlsx","n_sheets":4,"sheets":["2022 PBRIP SWEEPSTAKES RESULTS","4&5 FUTURITY","TX BRED","YOUTH "],"not_rendered":{"charts":0,"images":0,"macros":0,"external_links":0,"defined_names":1,"comments":0,"pivot_tables":0},"unopened":[],"bounds":{"document_bytes":16777216,"sheet_cells":100000,"rows_first":2000,"rows_last":500,"rows_between":2000,"halvings":0,"cell_chars":16384,"cell_head_chars":4096},"cells_cut":0,"cells_raw":0,"read":"whole","date_system":"1900"}

{"sheet":"2022 PBRIP SWEEPSTAKES RESULTS","index":0,"n_rows":91,"n_cols":11,"rows_kept":91,"cut":false,"hidden":false,"merged":[]}
[null,null,"2022 PBRIP SWEEPSTAKES (unofficial results)"]
["DRAW #","BACK #","HORSE","TX","FUT ","RIDER","TIME","EARNINGS","TX BRED","FUTURITY","Total"]
[83,1199,"DANCIN FOR FAME",null,null,"CLARK; AMANDA",16.518000000000001,2908.8,null,null,{"$f":"SUM(H3:J3)","v":2908.8}]
[2,2264,"HINDSIGHT","TX","FUT ","JOHNSON; BRITTANI",16.765000000000001,2424,1250,3180,{"$f":"SUM(H4:J4)","v":6854}]
[79,1833,"MOONLIGHT JAZZ",null,null,"MCAULEY; SUMMER",16.771000000000001,1939.2,null,null,{"$f":"SUM(H5:J5)","v":1939.2}]
[60,1116,"OSCAR DE LA BULLY",null,null,"MCCORNACK; TANNA R",16.856999999999999,1454.4,null,null,{"$f":"SUM(H6:J6)","v":1454.4}]
[62,1398,"GUYKO","TX",null,"PIERSON; BRITTANY",16.875,969.6,1000,null,{"$f":"SUM(H7:J7)","v":1969.6}]
[50,2270,"CASINO PERKS",null,null,"GROVES; JOSEY",16.905000000000001]
[42,2261,"MIA BUGS KID",null,null,"HARRINGTON; WILL",16.959]
[48,1131,"SMART WITH CASH","TX",null,"TYRER; MIRANDA",17.006,null,750,null,{"$f":"SUM(I10:J10)","v":750}]
[30,2101,"THE HALO EFFECT",null,null,"ECKERMANN; SHERI",17.062000000000001,2724,null,null,{"$f":"SUM(H11:J11)","v":2724}]
[32,1418,"EPIC STREAKER","TX",null,"HOOPER; BRANDY ROBINSON",17.065000000000001,2270,550,null,{"$f":"SUM(H12:J12)","v":2820}]
[6,1820,"KICKINTHEBHROUTTAYA",null,null,"HOLLOWAY; MINDY J",17.068000000000001,1816,null,null,{"$f":"SUM(H13:J13)","v":1816}]
[75,1165,"DASH OF HOPE","TX",null,"CLARY; JAYLAN R",17.085999999999999,1362,400,null,{"$f":"SUM(H14:J14)","v":1762}]
[24,1881,"OLYMPIAS LINEAGE",null,null,"HEADLEY; SHELTON M",17.132000000000001,908,null,null,{"$f":"SUM(H15:J15)","v":908}]
[41,1845,"LETS GO MOON",null,null,"GUTFRANSKI; LEXI K",17.143999999999998]
[51,1710,"PACKIN TREASURES",null,null,"SHAW; SHERREE",17.155000000000001]
[14,1134,"VOLTAGE",null,null,"REEDER; BRANDI R",17.202000000000002]
[77,1197,"STARLIGHT REMEDY",null,null,"CLARK; CHLOE",17.216999999999999]
[53,1080,"RGB REBA","TX",null,"REDDMANN; LINDSEY",17.222000000000001,null,250,null,{"$f":"SUM(I20:J20)","v":250}]
[16,1307,"CRUISERS DOLL",null,null,"SULLIVAN; RAYCEE L",17.236999999999998]
[19,1237,"KENTUCKYS BEEN MOONED",null,null,"MIER; MEGAN",17.268000000000001]
[11,1168,"EXTREME CHICO",null,null,"HERRING; DR JILL A",17.312000000000001]
[26,1161,"LMF CHROMEONMYCOWBOY",null,null,"WEYH; LEANN",17.344999999999999]
[9,1541,"HEAVYWEIGHT CONTENDER",null,null,"CARTER-RATLIFF; SHIANNA",17.347000000000001]
[38,1198,"KIM KAR DASHIN",null,null,"CLARK; AMANDA",17.352]
[55,1741,"SCOOTERS ELEGANCE",null,null,"WELDON; PAISLEY JEAN",17.355]
[17,1229,"BAILEYS POWER BREEZE",null,null,"ORSTAD; PAIGE",17.370999999999999]
[1,1505,"RJM SHINE ON ME","TX",null,"ELLIOT; SHAYLEY",17.381,null,200,null,{"$f":"SUM(I29:J29)","v":200}]
[5,1140,"BART PROMISED SPOTS",null,null,"FLESHMAN; KRISTIE BRATTEN",17.395]
[15,2262,"BABYSFAMOUSMILKSHAKE",null,null,"HARRINGTON; WILL",17.398]
[65,1145,"FAMOUS FRENCH PISTOL",null,null,"FARMER; JORDAN",17.483000000000001]
[66,1106,"KALLIE GOLDSEEKER",null,null,"COLE; CONNOR KC",17.483000000000001]
[67,1246,"IMA FAMOUS GAMBLER","TX",null,"BURNS; NICOLE",17.515000000000001,null,200,null,{"$f":"SUM(I34:J34)","v":200}]
[3,1905,"WEST TEXAS PUMP JACK",null,null,"CASTRO-DELANOE; MICHAELA",17.52,2539.1999999999998,null,null,{"$f":"SUM(H35:J35)","v":2539.1999999999998}]
[20,1607,"COMPROMISED PERKS","TX",null,"CAIN; NIKKI A",17.521999999999998,2116,null,null,{"$f":"SUM(H36:J36)","v":2116}]
[25,1832,"SPOT ON FAMOUS",null,null,"MCAULEY; SUMMER",17.579000000000001,1692.8,null,null,{"$f":"SUM(H37:J37)","v":1692.8}]
[49,1928,"JUST ANOTHERSTREAK",null,null,"HANCOCK; KAREN",17.59,1269.5999999999999,null,null,{"$f":"SUM(H38:J38)","v":1269.5999999999999}]
[46,2103,"GITTER DUN TURNPIKE",null,null,"LELEUX; KYLE",17.68,846.4,null,null,{"$f":"SUM(H39:J39)","v":846.4}]
[61,1569,"KN FLASHY N FABULOUS","TX",null,"HOOPER; BRANDY ROBINSON",17.731000000000002,null,200,null,{"$f":"SUM(I40:J40)","v":200}]
[21,1723,"SAM CARDINALE",null,null,"HUDSON; ALTON G",17.745000000000001]
[76,1739,"A SHARPER CARDINALE",null,null,"HUDSON; ALTON G",17.751000000000001]
[73,1722,"BEYOND DIAMONDS",null,null,"ZELDENTHUIS; JOHN R",17.751999999999999]
[31,1403,"PT FAMOUS NICK",null,null,"KENDALL; LOUISE",17.843]
[35,2263,"JET STREAKIN",null,null,"JOHNSON; BRITTANI",17.997]
[70,2100,"OH BROTHER TEX",null,null,"MUIR; WENDY",18.062000000000001,2354.4,null,null,{"$f":"SUM(H46:J46)","v":2354.4}]
[47,1763,"FLYING NUN",null,null,"HENRY; BRIAN D",18.123999999999999,1962.6,null,null,{"$f":"SUM(H47:J47)","v":1962.6}]
[81,1692,"IMAREALLADIESMAN","TX",null,"GIBBS; MARY",18.152999999999999,1569.6,200,null,{"$f":"SUM(H48:J48)","v":1769.6}]
[80,1206,"STOLIN EMBRACE",null,null,"HOBBIE; KATELYN",18.172000000000001,1177.2,null,null,{"$f":"SUM(H49:J49)","v":1177.2}]
[56,1103,"A TRU CHOCOLATE",null,null,"SIMS; SARAH",18.213999999999999,784.8,null,null,{"$f":"SUM(H50:J50)","v":784.8}]
[39,1190,"ZIPPIN CLINTON CUERVO",null,null,"CLAY; JENNIFER M",18.22]
[40,1153,"LKW EYES ON THE WIN",null,null,"HITE-TUCKER; PAULA D",18.356000000000002]
[4,1583,"DOUBLE SPLASH OF FLIT","TX",null,"HENDERSON; SAWYER",18.361999999999998]
[12,1133,"LS DOUBLE JEOPARDY","TX",null,"YOHE; BECKIE",18.369]
[7,2102,"KITS TEXAS TAXI","TX",null,"WOLF; CANDICE B",18.387]
[27,1086,"THIS GIRLS A GOLDCOIN",null,null,"WILLMON; LINDSI",18.507000000000001]
[13,1896,"PCR LOVEPOTIONNUMNINE",null,null,"SUMMERS; DEBBIE K",18.509]
[28,1217,"SHAKEM TILL YA FAMOUS","TX","FUT ","MCCAY; BRIANNA",18.516999999999999,null,null,1272,{"$f":"SUM(J58)","v":1272}]
[57,2022,"ON THE MAGNOLIA RED","TX","FUT ","MONGELLUZZO; JOANNA",18.518999999999998,2169,null,848,{"$f":"SUM(H59:J59)","v":3017}]
[72,1615,"SQH CAPPUCCINO",null,null,"WALTERS; JESSICA C",18.704999999999998,1808,null,null,{"$f":"SUM(H60:J60)","v":1808}]
[52,1132,"LS IM NO BULLY","TX",null,"YOHE; BECKIE",18.71,1446.4,null,null,{"$f":"SUM(H61:J61)","v":1446.4}]
[43,1795,"NATIVES WESTERN MONEY",null,null,"VERDIN; MANDY",18.846,1084.8,null,null,{"$f":"SUM(H62:J62)","v":1084.8}]
[58,1601,"COLORD BY CASH",null,null,"WALKER; TAMMY L",18.850000000000001,723.2,null,null,{"$f":"SUM(H63:J63)","v":723.2}]
[44,1808,"STREAK FREE ZONE",null,null,"HEADLEY; DAVID",19.334]
[54,1053,"RGB PRINCESS GOLD",null,null,"DICKSON; KENDAL LOU",19.768999999999998]
[45,1200,"DASHIN BARTENDER",null,null,"GORDON; KATEY",20.155999999999999]
[64,1402,"SHEZA BRICK STAR",null,null,"THETFORD; KIMBERLIE DYKES",21.132000000000001]
[8,1041,"SHF DOLLS KISS",null,null,"GLEMBA; KRISTEN",9999.99]
[10,1400,"RKM GAMBLE ON FAME",null,null,"OGDEN; LISA",9999.99]
[22,1383,"DOLLS STING","TX",null,"TRAUTNER; STEPHANIE",9999.99]
[23,2265,"TURNPIKERS WAGON",null,null,"JOHNSON; BRITTANI",9999.99]
[29,1650,"IMSTREAKINFORCASH","TX",null,"BAUMANN; SHAYLEE",9999.99]
[36,1788,"SLICK SPIRIT N FRILLS","TX",null,"SILVERS; MELISSA",9999.99]
[37,1042,"VINTAGE JUDY",null,null,"GLEMBA; KRISTEN",9999.99]
[59,1067,"HEZ ONE SLICK FLING",null,"FUT ","RAASCH; MELINDA",9999.99]
[63,1837,"LINDA STINSON",null,"FUT ","HEADLEY; SHELTON M",9999.99]
[68,1401,"MISS GOODYEAR","TX",null,"COCKRELL; KIMBERLY",9999.99]
[69,1514,"DO HE DO WHITE",null,null,"SCHNUCK; HALEY",9999.99]
[71,1844,"COUNTRY QUICK HEROINE",null,null,"KEITH; KAYLA",9999.99]
[78,1689,"RR JET STREAKIN SKYE","TX","FUT ","RANDLE; ROBIN",9999.99]
[82,1585,"CONVINCING THE MOON","TX",null,"WILSON; MIA",9999.99]
[34,1726,"SMOKIN EM SPOTLESS",null,null,"LUCERO DVM; PAUL ANN",9999.99]
[18,1646,"TOKEN TA FAME",null,null,"STATON; ERIN","SCRATCHED"]
[33,1450,"GENUINE HONEY","TX",null,"MCREYNOLDS; JUDY L","SCRATCHED"]
[74,1666,"SASSYS FLICKA","TX",null,"TYLER; KIMBERLY","SCRATCHED"]
[null,1779,"A B B BRILEY",null,null,"CURRAN; KYLEY","SCRATCHED"]
[null,1712,"A SMART SUGAR BARBI",null,null,"CURRAN; KYLEY","SCRATCHED"]
[null,1248,"ARIZONA CACTUS",null,null,"MCCARTHY; TEREA","SCRATCHED"]
[null,1620,"MS GEM BOB FOXIE",null,null,"DAVIS; CHEYENNE","SCRATCHED"]
[null,1045,"ROGUE CASH ACCOUNT",null,null,"SCHUBERT; DANIELLE N"]
[null,null,null,null,null,"TOTAL",null,{"$f":"SUM(H3:H90)","v":42320},{"$f":"SUM(I4:I90)","v":5000},{"$f":"SUM(J3:J90)","v":5300},{"$f":"SUM(K3:K89)","v":52620}]

{"sheet":"4&5 FUTURITY","index":1,"n_rows":11,"n_cols":8,"rows_kept":11,"cut":false,"hidden":false,"merged":[]}
[null,"2022 PBRIP 4 & 5 Year-Old Futurity"]
["DRAW #","HORSE","RIDER","TIME","PLACE","EARNINGS"]
[2,"HINDSIGHT","JOHNSON; BRITTANI",16.765000000000001,"1D-1",3180,null,"1D-1st Place: $1,908"]
[28,"SHAKEM TILL YA FAMOUS","MCCAY; BRIANNA",18.516999999999999,"2D-1",1272,null,"1D-2nd Place:  $1,272"]
[57,"ON THE MAGNOLIA RED","MONGELLUZZO;  JOANNA",18.518999999999998,"2D-2",848]
[78,"RR JET STREAKIN SKYE","RANDLE; ROBIN",999.99,null,null,null,"2D-1st Place $1,272"]
[63,"LINDA STINSON","HEADLEY; SHELTON M",999.99900000000002,null,null,null,"2D-2nd Place:  $848"]
[59,"HEZ ONE SLICK FLING","RAASCH; MELINDA",9999.99]
[]
[]
[null,null,"TOTAL",null,null,{"$f":"SUM(F3:F7)","v":5300}]

{"sheet":"TX BRED","index":2,"n_rows":29,"n_cols":7,"rows_kept":29,"cut":false,"hidden":false,"merged":[]}
[null,null,"2022 PBRIP SWEEPSTAKES - TX BRED"]
["DRAW # ",null,"HORSE","TX","RIDER","TIME","EARNINGS"]
[1,null,"HINDSIGHT",null,"JOHNSON; BRITTANI",16.765000000000001,1250]
[2,null,"GUYKO",null,"PIERSON; BRITTANY",16.875,1000]
[4,null,"SMART WITH CASH",null,"TYRER; MIRANDA",17.006,750]
[7,null,"EPIC STREAKER",null,"HOOPER; BRANDY ROBINSON",17.065000000000001,550]
[12,null,"DASH OF HOPE",null,"CLARY; JAYLAN R",17.085999999999999,400]
[20,null,"RGB REBA",null,"REDDMANN; LINDSEY",17.222000000000001,250]
[22,null,"RJM SHINE ON ME",null,"ELLIOT; SHAYLEY",17.381,200]
[28,null,"IMA FAMOUS GAMBLER",null,"BURNS; NICOLE",17.515000000000001,200]
[29,null,"COMPROMISED PERKS",null,"CAIN; NIKKI A",17.521999999999998,200]
[32,null,"KN FLASHY N FABULOUS",null,"HOOPER; BRANDY ROBINSON",17.731000000000002,200]
[33,null,"IMAREALLADIESMAN",null,"GIBBS; MARY",18.152999999999999]
[38,null,"DOUBLE SPLASH OF FLIT",null,"HENDERSON; SAWYER",18.361999999999998]
[48,null,"LS DOUBLE JEOPARDY",null,"YOHE; BECKIE",18.369]
[52,null,"KITS TEXAS TAXI",null,"WOLF; CANDICE B",18.387]
[53,null,"SHAKEM TILL YA FAMOUS",null,"MCCAY; BRIANNA",18.516999999999999]
[57,null,"ON THE MAGNOLIA RED",null,"MONGELLUZZO; JOANNA",18.518999999999998]
[61,null,"LS IM NO BULLY",null,"YOHE; BECKIE",18.71]
[62,null,"RR JET STREAKIN SKYE",null,"RANDLE; ROBIN",999.99]
[67,null,"DOLLS STING",null,"TRAUTNER; STEPHANIE",9999.99]
[68,null,"IMSTREAKINFORCASH",null,"BAUMANN; SHAYLEE",9999.99]
[74,null,"SLICK SPIRIT N FRILLS",null,"SILVERS; MELISSA",9999.99]
[75,null,"MISS GOODYEAR",null,"COCKRELL; KIMBERLY",9999.99]
[78,null,"CONVINCING THE MOON",null,"WILSON; MIA",9999.99]
[81,null,"GENUINE HONEY",null,"MCREYNOLDS; JUDY L","SCRATCHED"]
[82,null,"SASSYS FLICKA",null,"TYLER; KIMBERLY","SCRATCHED"]
[null,null,"ROGUE CASH ACCOUNT",null,"SCHUBERT; DANIELLE N","Scratched"]
[null,null,null,null,null,null,{"$f":"SUM(G3:G28)","v":5000}]

{"sheet":"YOUTH ","index":3,"n_rows":6,"n_cols":5,"rows_kept":6,"cut":false,"hidden":false,"merged":[]}
[null,null,"2022 PBRIP SWEEPSTAKES - YOUTH SIDEPOT"]
["DRAW #","HORSE ","RIDER ","TIME ","PAYOUT"]
[null,"HEAVYWEIGHT CONTENDER","CARTER-RATLIFF; SHIANNA",17.085000000000001,450]
[null,"SCOOTERS ELEGANCE","WELDON; PAISLEY JEAN",18.399999999999999,350]
[null,"SQH CAPPUCCINO","WALTERS; JESSICA C",18.434000000000001,200]
[null,"A TRU CHOCOLATE","SIMS; SARAH",19.032,0]